[Event "Swietokrzyskie IM Chess-ch 2022"]
[Site "Zagnansk"]
[Date "2022.05.04"]
[Round "7.4"]
[White "Krzywda, CM Andrzej"]
[Black "Nowak, FM Lukasz"]
[Result "1-0"]
[ECO "B24"]
[WhiteElo "2152"]
[BlackElo "2376"]
[Annotator "TA"]
[PlyCount "151"]
[EventDate "2022.04.29"]
[EventCountry "POL"]
[SourceTitle "playchess.com"]
[Source "ChessBase"]
[SourceQuality "1"]
[TimeControl "40/5400+30:1800+30"]

{[%evp 9,151,16,16,0,0,7,14,12,18,10,25,-19,0,0,-17,-7,-11,-10,0,0,0,0,58,28,28,41,29,38,39,10,30,19,77,66,136,133,123,96,96,96,138,138,138,138,138,138,141,140,141,127,148,132,126,43,54,43,43,43,74,74,74,74,74,74,74,74,85,75,85,74,74,74,74,74,74,74,85,74,80,74,74,74,74,74,74,74,74,74,74,0,74,0,74,0,74,0,74,74,74,74,74,0,74,0,74,0,74,0,74,0,74,0,74,74,100,74,333,333,472,502,603,602,583,561,765,725,759,775,720,604,863,812,2879,2454,1990,1858,29980,29981,29981,29982,29982,29983,29981,29980]} 1. e4 {[%emt 0:00:04]} c5 {[%emt 0:00:08]} 2. Nc3 {[%emt 0:00:06]} Nc6 {[%emt 0:00:08]} 3. Bb5 {[%emt 0:00:03]} Nd4 {[%emt 0:00:14]} 4. Nf3 {[%emt 0:00:06]} a6 {[%emt 0:00:10]} 5. Bd3 {[%emt 0:00:08]} g6 {[%emt 0:00:09]} 6. Rb1 {[%emt 0:03:14] B23: Closed Sicilian: Lines without g3.} Nc6 {[%emt 0:00:19]} 7. a3 {[%emt 0:01:16]} b5 {[%emt 0:00:14]} 8. O-O {[%emt 0:04:08] The position is equal.} Bg7 {[%emt 0:00:24]} 9. Re1 {[%emt 0:01:59]} d6 {[%emt 0:00:31] [#]} 10. b3 $146 {[%emt 0:06:55]} ({Predecessor:} 10. b4 Nf6 11. bxc5 dxc5 12. e5 Nh5 13. Be4 Bd7 14. d4 Rc8 15. Bxc6 Bxc6 16. d5 {1-0 (36) Mchedlishvili,M (2587)-Salem,A (2690) Abu Dhabi 2021}) 10... Bg4 {[%emt 0:08:14]} 11. a4 {[%emt 0:06:42]} b4 {[%emt 0:04:05]} 12. Nd5 {[%emt 0:00:25]} Nd4 {[%emt 0:01:46]} 13. c3 {[%emt 0:03:13]} bxc3 {[%emt 0:02:33]} 14. dxc3 {[%emt 0:00:08]} Nxf3+ {[%emt 0:00:13]} 15. gxf3 {[%emt 0:00:04]} Bd7 {[%emt 0:00:27]} (15... Bh5 $11) 16. Bg5 {[%emt 0:11:38]} h6 {[%emt 0:13:30]} 17. Bh4 {[%emt 0:02:10]} g5 {[%emt 0:04:00]} 18. Bg3 {[%emt 0:00:07]} e5 {[%emt 0:02:47]} (18... Nf6 19. Nxf6+ Bxf6 20. e5 dxe5 21. Bxe5 $16) 19. Bc4 {[%emt 0:11:58]} Ne7 {[%emt 0:03:49]} (19... h5 $5 {[%cal Rh5h4]}) 20. Ne3 {[%emt 0:01:12]} Be6 {[%emt 0:04:06]} (20... Bh3 $1 $11) 21. Qd3 {[%emt 0:02:25]} a5 {[%emt 0:11:36]} (21... O-O $14) 22. Rbd1 $36 {[%emt 0:00:12][%mdl 2048] aiming for Bxe6. White is on the roll.} Nc8 {[%emt 0:02:25]} 23. Bxe6 {[%emt 0:11:10]} fxe6 {[%emt 0:00:11]} 24. Nc4 {[%emt 0:01:14]} Ke7 {[%emt 0:01:09]} 25. h4 {[%emt 0:02:49]} Bf6 {[%emt 0:05:08]} 26. hxg5 {[%emt 0:01:01] White is much more active.} hxg5 {[%emt 0:00:08]} 27. Kg2 {[%emt 0:00:40]} Qc7 {[%emt 0:07:50]} 28. Rh1 {[%emt 0:04:55]} Rxh1 {[%emt 0:02:40]} 29. Rxh1 {[%emt 0:00:03]} (29. Kxh1 $6 Nb6 $11) 29... Kf8 {[%emt 0:00:16]} 30. Rd1 {[%emt 0:01:08][%cal Rc4d6]} Be7 {[%emt 0:00:46]} 31. Qf1 {[%emt 0:00:51]} (31. Ne3 $16) 31... Nb6 {[%emt 0:01:15]} 32. Qh1 {[%emt 0:01:08]} Kg7 {[%emt 0:01:16] Prevents Qh8+.} 33. Qh3 {[%emt 0:06:49]} Nxc4 {[%emt 0:01:45]} 34. Rh1 $1 {[%emt 0:05:53] White threatens Qh7+ and mate.} Rg8 {[%emt 0:00:32]} 35. Qxe6 {[%emt 0:05:02] Threatens to win with Rh6.} (35. bxc4 Qc8 $11) 35... Rh8 {[%emt 0:08:46] Inhibits Rh6. ...Rxh1 is the strong threat.} 36. Rxh8 {[%emt 0:00:33] Chess con chili.} Kxh8 {[%emt 0:00:07]} 37. Qxc4 {[%emt 0:00:29]} Bd8 {[%emt 0:01:07]} 38. Qe6 {[%emt 0:01:00]} Kg7 {[%emt 0:00:45] Prevents Qg6+.} 39. Qd5 {[%emt 0:03:03]} Kf8 {[%emt 0:03:01]} 40. Qc4 {[%emt 0:00:00]} Qf7 {[%emt 0:00:00]} 41. Qb5 {[%emt 0:16:27]} Qe8 {[%emt 0:24:09] Hoping for ...Qxb5.} 42. Qa6 {[%emt 0:00:47]} Qd7 {[%emt 0:00:23]} 43. Qd3 {[%emt 0:01:08][%cal Og3e5]} Qe6 {[%emt 0:02:03]} 44. Qd1 {[%emt 0:00:33]} (44. Kg1 {seems wilder.} Ke7 45. Qb5 Qh3 46. Qb7+) 44... Ke7 {[%emt 0:00:30]} 45. Qb1 {[%emt 0:01:35]} Kd7 {[%emt 0:03:10]} 46. Kf1 {[%emt 0:00:44]} Kc6 {[%emt 0:01:05]} 47. Ke2 {[%emt 0:00:31]} Qf7 {[%emt 0:01:10]} 48. Qb2 {[%emt 0:01:57]} (48. Qd1 {looks sharper.} Bb6 49. c4 Qe8 50. Qd2) 48... Bb6 {[%emt 0:01:23]} 49. Qc2 {[%emt 0:02:19]} (49. c4 $16) 49... Kc7 {[%emt 0:00:33]} (49... c4 $11) 50. Qd1 {[%emt 0:00:34]} (50. c4 $16) 50... Kc6 {[%emt 0:01:49]} (50... c4 $11 51. bxc4 (51. b4 axb4 52. cxb4 Bd4 $11) 51... Qxc4+ 52. Kd2 Kc6) 51. Kf1 {[%emt 0:01:09]} ({White should try} 51. c4 $16) 51... Kc7 {[%emt 0:00:11] [#]} (51... c4 $11) 52. Kg2 {[%emt 0:00:05]} (52. c4 $1 $16) 52... Kc6 {[%emt 0:00:22]} (52... c4 $11) 53. Qb1 {[%emt 0:00:15]} (53. c4 {with more complications.} Qe6 54. Qd5+ Kd7 55. Qb7+) 53... Kc7 {[%emt 0:00:16]} 54. Qb2 {[%emt 0:00:33]} Qe6 {[%emt 0:00:45]} 55. Qc2 {[%emt 0:02:29]} (55. c4 $16) 55... Qf7 {[%emt 0:02:07]} (55... c4 $11) 56. Qd1 {[%emt 0:00:12]} ({White should play} 56. c4 $16) 56... Qe6 {[%emt 0:01:18]} (56... Kc6 $11) 57. Bh2 {[%emt 0:00:20]} (57. c4 $16) 57... Qf7 {[%emt 0:00:43]} (57... c4 $11 {keeps the balance.}) 58. Qc2 {[%emt 0:01:38]} (58. c4 $16) 58... Kc6 {[%emt 0:01:58] [#]} (58... c4 $11 {remains equal.} 59. bxc4 Qxc4) 59. Qb1 {[%emt 0:00:25]} (59. c4 $1 $16) 59... Kc7 {[%emt 0:01:40]} (59... c4 $11 60. b4 (60. bxc4 Qxc4 61. Qd1 Kc7 $11) 60... axb4 61. Qxb4 g4) 60. Qd1 {[%emt 0:00:11]} (60. c4 $16) 60... Kc6 {[%emt 0:00:17]} (60... c4 $11 61. bxc4 Qxc4) 61. c4 {[%emt 0:00:09]} Bc7 {[%emt 0:00:56]} 62. Qd2 {[%emt 0:00:07]} Bb6 $2 {[%emt 0:00:28][%mdl 8192] This move loses the game for Black.} (62... Qf6 $16) 63. Qxg5 $18 {[%emt 0:00:57] Strongly threatening f4.} Bc7 {[%emt 0:01:32]} (63... Qh7 $142 64. Bg3 Bc7) 64. f4 {[%emt 0:00:48][%cal Bf3f4,Bf4f5][%mdl 32]} Qe8 {[%emt 0:01:27]} 65. f5 {[%emt 0:02:30]} Bd8 {[%emt 0:00:08]} 66. Qg6 {[%emt 0:00:21]} Qe7 {[%emt 0:00:38]} 67. Bg3 {[%emt 0:00:27]} Kd7 {[%emt 0:01:57]} 68. f3 {[%emt 0:00:23]} Kc6 {[%emt 0:00:16]} 69. Be1 {[%emt 0:00:48]} Kd7 {[%emt 0:00:26]} 70. Qg8 {[%emt 0:01:31]} Kc6 {[%emt 0:00:30]} 71. Qd5+ {[%emt 0:00:57]} Kd7 {[%emt 0:01:19]} 72. Qb7+ {[%emt 0:00:16]} Bc7 {[%emt 0:00:09]} 73. Bxa5 {[%emt 0:02:59] White mates.} Qg5+ {[%emt 0:00:15]} 74. Kf2 {[%emt 0:00:31]} Qh4+ {[%emt 0:00:08]} 75. Ke2 {[%emt 0:00:29]} Qh2+ {[%emt 0:00:06]} 76. Kd3 {[%emt 0:00:23] Weighted Error Value: White=0.19 (very precise) /Black=0.26 (precise)} 1-0

[Event "Swietokrzyskie IM Chess-ch 2022"]
[Site "Zagnansk"]
[Date "2022.05.04"]
[Round "7.5"]
[White "Wikar, WFM Martyna"]
[Black "Prokofiev, Valentyn"]
[Result "1-0"]
[ECO "C55"]
[WhiteElo "2197"]
[BlackElo "2287"]
[Annotator "TA"]
[PlyCount "77"]
[EventDate "2022.04.29"]
[EventCountry "POL"]
[SourceTitle "playchess.com"]
[Source "ChessBase"]
[SourceQuality "1"]
[TimeControl "40/5400+30:1800+30"]

{[%evp 10,77,39,42,25,-6,-1,-13,-26,-27,0,0,-6,-18,6,-10,-24,-46,-43,-43,-32,-54,-14,0,0,-61,-14,-35,-4,-19,27,-89,-76,-52,-38,-43,-55,-51,-54,-56,127,109,132,128,774,766,864,828,1050,800,942,571,822,816,954,701,879,795,1091,1019,29988,29989,29989,29990,29990,29991,29991,29992,29992,29971]} 1. e4 {[%emt 0:00:02]} e5 {[%emt 0:00:01]} 2. Nf3 {[%emt 0:00:16]} Nc6 {[%emt 0:00:03]} 3. Bc4 {[%emt 0:00:13]} Nf6 {[%emt 0:00:03]} 4. d3 {[%emt 0:00:26]} h6 {[%emt 0:00:03]} 5. O-O {[%emt 0:01:01]} d6 {[%emt 0:00:03]} 6. c3 {[%emt 0:00:51]} g5 {[%emt 0:00:02] now scores much better than the old 6...g6. C55: Two Knights: 4 d3, 4 d4 exd4 5 e5 and Max Lange Attack.} 7. Be3 {[%emt 0:10:42]} Bg7 {[%emt 0:00:56]} 8. b4 {[%emt 0:04:52]} O-O {[%emt 0:00:54] The position is equal.} 9. Nbd2 {[%emt 0:01:59]} d5 {[%emt 0:05:03]} (9... g4 $5 {[%cal Rg4f3]} 10. Ne1 d5 11. exd5 Nxd5 $11) 10. exd5 {[%emt 0:00:41]} Nxd5 {[%emt 0:00:02]} 11. Ne4 {[%emt 0:04:25] [#]} b6 $146 {[%emt 0:11:58][%cal Bb7b6,Bb6b5][%mdl 32]} ({Predecessor:} 11... a5 12. b5 Nce7 13. Bc5 Re8 14. Re1 Be6 15. Rc1 Ng6 16. Ng3 b6 17. Ba3 f5 {0-1 (36) Vergara Jofre,F (2332)-Anuj,S (2372) Sitges 2019}) 12. Qb3 {[%emt 0:04:48]} Be6 {[%emt 0:02:51][%cal Ob6b5,Bc8e6,Be6d5,Bd5b7,Bb7g2][%mdl 32]} 13. Ng3 {[%emt 0:14:42]} b5 {[%emt 0:08:28]} (13... Nxe3 14. fxe3 Qd7 15. Nh5 $14) 14. Bxd5 {[%emt 0:00:07]} Bxd5 {[%emt 0:00:14]} 15. Qd1 {[%emt 0:00:51]} f5 {[%emt 0:01:42]} (15... a5 $5 {[%cal Ra5b4]}) 16. Bc5 {[%emt 0:00:38]} Rf7 {[%emt 0:00:21]} 17. Nd2 {[%emt 0:08:23]} (17. a4 $11) 17... Ne7 {[%emt 0:01:56]} (17... a5 $15 18. a3 Be6) 18. c4 {[%emt 0:05:29]} Bb7 {[%emt 0:01:29]} 19. Nb3 {[%emt 0:02:09]} Rc8 {[%emt 0:03:23]} (19... bxc4 $142 20. Na5 Bc8) 20. Re1 {[%emt 0:09:35] [#]} (20. Na5 $11 {keeps the balance.} Ba8 21. cxb5) 20... Ng6 $1 $17 {[%emt 0:01:47]} 21. Nh5 {[%emt 0:01:37]} Nh4 {[%emt 0:04:01] Threatens to win with ...Bh8.} 22. Nxg7 {[%emt 0:06:49]} Rxg7 {[%emt 0:00:49]} 23. Rxe5 {[%emt 0:03:48]} Bxg2 {[%emt 0:01:43] And now ...Nf3+ would win.} 24. Nd4 {[%emt 0:02:02] Inhibits Nf3+.} g4 $2 {[%emt 0:05:59]} (24... bxc4 $15 25. Re6 (25. dxc4 Rd7 $15) (25. Nxf5 Qf6 $17) 25... Bb7 26. dxc4 Rd7) 25. Nxf5 $16 {[%emt 0:02:26] Dancing on a razor blade.} (25. cxb5 $6 Bh3 26. Kh1 (26. Qb3+ Kh7 $15) 26... Nf3 27. Nxf3 gxf3 28. Qxf3 Bg2+ 29. Qxg2 Rxg2 30. Kxg2 Qxd3 $11) 25... Nxf5 {[%emt 0:00:07]} 26. Rxf5 {[%emt 0:00:43]} ({Much weaker is} 26. Kxg2 $6 Qf6 27. Qe2 (27. Rd5 c6 $17) 27... Nh4+ 28. Kf1 (28. Kh1 Nf3 $11) 28... Nf3 29. Re8+ Rxe8 30. Qxe8+ Kh7 31. Qe4+ Kh8 $11) 26... Qh4 $2 {[%emt 0:04:08][%mdl 8192] A mistake that costs the game.} 27. Kxg2 $18 {[%emt 0:02:17]} Re8 {[%emt 0:02:46]} 28. Kh1 {[%emt 0:01:18]} Rg6 {[%emt 0:02:18]} 29. Qg1 {[%emt 0:01:39]} bxc4 {[%emt 0:00:04]} 30. Qg3 {[%emt 0:01:07]} Qd8 {[%emt 0:00:02]} 31. dxc4 {[%emt 0:00:26]} Qd2 {[%emt 0:00:18]} 32. Qf4 {[%emt 0:01:47]} Qd3 {[%emt 0:01:42]} 33. Rg1 {[%emt 0:00:44] [#] Strongly threatening f3.} g3 {[%emt 0:00:33]} 34. hxg3 {[%emt 0:00:34] aiming for Rf8+.} Re4 {[%emt 0:00:23]} 35. Rf8+ {[%emt 0:00:10] White mates.} Kh7 {[%emt 0:00:03]} 36. Qf7+ {[%emt 0:00:06]} Rg7 {[%emt 0:00:02]} 37. Qf5+ {[%emt 0:00:05]} Rg6 {[%emt 0:00:02]} 38. Rf7+ {[%emt 0:00:11]} Kh8 {[%emt 0:00:02]} 39. Kg2 {[%emt 0:01:17] Weighted Error Value: White=0.38/Black=0.58} ({Weaker is} 39. Qxg6 Rh4+ 40. Kg2 Qxg6 $18) 1-0

[Event "Swietokrzyskie IM Chess-ch 2022"]
[Site "Zagnansk"]
[Date "2022.05.05"]
[Round "8.1"]
[White "Sieciechowicz, IM Marcin"]
[Black "Prokofiev, Valentyn"]
[Result "0-1"]
[ECO "E61"]
[WhiteElo "2388"]
[BlackElo "2287"]
[Annotator "TA"]
[PlyCount "78"]
[EventDate "2022.04.29"]
[EventCountry "POL"]
[SourceTitle "playchess.com"]
[Source "ChessBase"]
[SourceQuality "1"]
[TimeControl "40/5400+30:1800+30"]

{[%evp 19,78,53,53,33,47,58,58,52,47,52,51,28,30,31,35,28,33,16,20,0,0,14,31,10,29,0,31,0,0,0,0,0,0,0,0,0,497,0,0,0,127,-281,-285,-291,-291,-474,-441,-433,-428,-663,-663,-663,-644,-767,-734,-747,-746,-726,-719,-647,-611]} 1. d4 {[%emt 0:00:02]} Nf6 {[%emt 0:00:03]} 2. c4 {[%emt 0:00:04]} g6 {[%emt 0:00:02]} 3. Nc3 c5 {[%emt 0:00:02]} 4. d5 {[%emt 0:00:21]} Bg7 {[%emt 0:00:05]} 5. e4 {[%emt 0:00:18]} d6 {[%emt 0:00:02]} 6. Nf3 {[%emt 0:00:07]} O-O {[%emt 0:00:03]} 7. Be2 {[%emt 0:00:06]} e6 {[%emt 0:00:11]} 8. O-O {[%emt 0:00:17]} Re8 {[%emt 0:00:04]} 9. h3 {[%emt 0:00:14]} exd5 {[%emt 0:00:04]} 10. exd5 {[%emt 0:00:04]} Bf5 {[%emt 0:00:03]} 11. Bd3 {[%emt 0:00:10] E91: King's Indian: Classical: 6 Be2, unusual replies including 6...c5 and 6...Bg4.} Ne4 {[%emt 0:00:06]} 12. Nxe4 {[%emt 0:01:51]} Bxe4 {[%emt 0:00:04]} 13. Bxe4 {[%emt 0:00:52] White is slightly better.} Rxe4 {[%emt 0:00:04]} 14. Qc2 {[%emt 0:00:47]} Re8 {[%emt 0:00:10]} 15. Bg5 {[%emt 0:01:07]} Qc7 {[%emt 0:05:44]} 16. Rae1 {[%emt 0:02:56]} Nd7 {[%emt 0:00:33]} 17. b3 {[%emt 0:01:16] [#]} a6 $146 {[%emt 0:03:05]} ({Predecessor:} 17... Ne5 18. Nd2 f5 19. Nb1 Qf7 20. Nc3 a6 21. a4 f4 22. Ne4 Qf8 23. f3 h6 {½-½ (47) Satkar,C (2089)-Kushagra,M (2283) Ahmedabad 2018}) 18. Qd2 {[%emt 0:02:32]} b5 {[%emt 0:06:11]} 19. Rxe8+ {[%emt 0:03:24]} Rxe8 {[%emt 0:01:55]} 20. Re1 {[%emt 0:00:19]} Rb8 {[%emt 0:08:18]} 21. Bh6 {[%emt 0:16:25]} Qd8 {[%emt 0:27:06]} 22. Bg5 {[%emt 0:02:00]} Qc7 {[%emt 0:02:12]} 23. Qf4 {[%emt 0:19:37] Black must now prevent Re7.} Ne5 {[%emt 0:01:23]} 24. Nxe5 {[%emt 0:03:20]} Bxe5 {[%emt 0:00:36]} 25. Qh4 {[%emt 0:23:41]} Qa5 {[%emt 0:04:59][%csl LRa2,LRe1][%cal Ra5e1]} 26. Rxe5 {[%emt 0:01:37]} dxe5 $11 {[%emt 0:00:14][%mdl 4096] Endgame KQR-KQB} 27. d6 {[%emt 0:06:05] Strongly threatening d7.} Qe1+ {[%emt 0:04:09]} ({Don't do} 27... Qxa2 28. Kh2 h5 29. d7 $16) 28. Kh2 {[%emt 0:00:02] White wants to mate with Bh6.} Qd1 {[%emt 0:03:43]} 29. Be7 {[%emt 0:00:01][%cal Ob3b4] aiming for b4!} Qd4 {[%emt 0:00:31] [#]} (29... bxc4 $11 {keeps the balance.} 30. Qxc4 Qd4 31. Qxa6 h5) 30. Qf6 $2 {[%emt 0:08:15][%mdl 8192] This costs White the game.} (30. b4 $1 $16) 30... bxc4 $19 {[%emt 0:09:47]} 31. bxc4 {[%emt 0:00:55] [#]} Rb7 $1 {[%emt 0:04:51] Hoping for ...Qf4+.} ({Resist} 31... Qxc4 32. d7 Qf4+ 33. Qxf4 exf4 34. d8=Q+ Rxd8 35. Bxd8 $18) 32. Qf3 {[%emt 0:05:34]} (32. g4 {was called for.}) 32... Qf4+ {[%emt 0:01:33] Black is clearly winning.} 33. Qxf4 {[%emt 0:00:01]} exf4 {[%emt 0:00:06] KR-KB} 34. Bg5 {[%emt 0:00:17]} (34. a4 $142) 34... Kf8 35. Bxf4 {[%emt 0:01:43]} Rb4 {[%emt 0:01:05]} 36. d7 {[%emt 0:01:23]} Ke7 {[%emt 0:00:06]} 37. Bd6+ {[%emt 0:00:01]} Kxd7 {[%emt 0:00:05]} 38. Bxc5 {[%emt 0:00:02]} Rxc4 {[%emt 0:00:05]} 39. Bf8 {[%emt 0:00:02]} Rc2 {[%emt 0:00:04][%csl LRa2,LRf2] Weighted Error Value: White=0.44/Black=0.10 (very precise)} 0-1

[Event "Swietokrzyskie IM Chess-ch 2022"]
[Site "Zagnansk"]
[Date "2022.05.05"]
[Round "8.2"]
[White "Nowak, FM Lukasz"]
[Black "Wikar, WFM Martyna"]
[Result "1/2-1/2"]
[ECO "E68"]
[WhiteElo "2376"]
[BlackElo "2197"]
[Annotator "TA"]
[PlyCount "121"]
[EventDate "2022.04.29"]
[EventCountry "POL"]
[SourceTitle "playchess.com"]
[Source "ChessBase"]
[SourceQuality "1"]
[TimeControl "40/5400+30:1800+30"]

{[%evp 21,121,51,75,43,87,76,84,54,96,92,106,79,108,97,99,102,106,105,93,105,104,110,119,122,115,107,110,110,92,101,110,69,71,50,66,43,137,89,89,83,83,80,79,95,104,35,25,24,37,22,18,12,32,32,53,52,63,47,67,52,39,34,41,17,20,20,19,17,19,19,20,25,26,19,107,37,59,19,19,0,59,0,23,22,31,0,5,9,8,0,70,16,14,0,0,0,0,0,0,0,0,0]} 1. d4 {[%emt 0:00:04]} Nf6 {[%emt 0:00:06]} 2. c4 {[%emt 0:00:08]} g6 {[%emt 0:00:04]} 3. g3 {[%emt 0:00:07]} Bg7 {[%emt 0:00:47]} 4. Bg2 {[%emt 0:00:10]} d6 {[%emt 0:00:55]} 5. Nc3 {[%emt 0:00:14]} O-O {[%emt 0:01:07]} 6. Nf3 {[%emt 0:00:10][%cal Bg1f3,Bf3d4,Bd4b5][%mdl 32]} Nbd7 {[%emt 0:04:28]} 7. O-O {[%emt 0:00:23]} e5 {[%emt 0:02:53]} 8. e4 {[%emt 0:00:15]} Re8 {[%emt 0:00:54]} 9. Be3 {[%emt 0:01:12]} exd4 {[%emt 0:05:26]} 10. Nxd4 {[%emt 0:00:24]} Nc5 {[%emt 0:02:51]} 11. f3 {[%emt 0:02:09]} a5 {[%emt 0:07:18]} 12. Qd2 {[%emt 0:04:01] E68: King's Indian: Fianchetto: 6...Nbd7 7 0-0 e5 8 e4.} (12. Ndb5 $5 {[%cal Re3c5]}) 12... Bd7 {[%emt 0:01:26]} 13. Rad1 {[%emt 0:00:26]} a4 {[%emt 0:04:51]} 14. Rfe1 {[%emt 0:00:33] [#] White is better.} Ne6 $146 {[%emt 0:09:39]} ({Predecessor:} 14... Qc8 15. Nd5 Nxd5 16. cxd5 Bh3 17. Bh1 Bd7 18. Qc2 h6 19. Rc1 Kh7 20. f4 b5 {1-0 (39) Pursiainen,H-Antin,T Finland 1982}) 15. Ndb5 {[%emt 0:10:39]} Qc8 {[%emt 0:05:23]} 16. Bf2 {[%emt 0:02:44]} Bc6 {[%emt 0:03:06]} 17. h3 {[%emt 0:00:43]} b6 {[%emt 0:01:55]} 18. f4 {[%emt 0:05:01] Threatens to win with e5.} Qb7 {[%emt 0:03:16]} 19. Nd5 {[%emt 0:13:11]} Rac8 {[%emt 0:07:25]} 20. Nd4 {[%emt 0:02:44] White is much more active.} Nxd4 {[%emt 0:02:03]} 21. Bxd4 {[%emt 0:00:13]} Bxd5 {[%emt 0:11:43]} 22. cxd5 {[%emt 0:01:07]} ({Much worse is} 22. exd5 $6 Nd7 $11) 22... Nd7 {[%emt 0:01:21]} 23. Bxg7 {[%emt 0:04:23]} Kxg7 {[%emt 0:00:05]} 24. Qd4+ {[%emt 0:00:21]} f6 {[%emt 0:00:05]} 25. Qxa4 {[%emt 0:00:21]} b5 {[%emt 0:00:46]} 26. Qd4 {[%emt 0:03:07]} Ra8 $1 {[%emt 0:01:26]} 27. a3 {[%emt 0:03:02]} Ra4 $1 {[%emt 0:01:31]} 28. Qf2 {[%emt 0:04:46]} Rc4 {[%emt 0:10:05] [#]} (28... b4 $1 $14) 29. Rd4 {[%emt 0:03:01]} (29. b4 $142 $1) 29... Qb6 $16 {[%emt 0:03:35]} 30. Rxc4 {[%emt 0:05:36]} bxc4 {[%emt 0:00:04]} 31. Rc1 {[%emt 0:00:10]} Qxf2+ {[%emt 0:02:30]} 32. Kxf2 {[%emt 0:00:07][%mdl 4096] Endgame KRB-KRN} Rb8 {[%emt 0:00:04] [#]} 33. Rxc4 {[%emt 0:03:14]} (33. Rc2 $1 $16) 33... Rxb2+ $14 {[%emt 0:00:05]} 34. Kg1 {[%emt 0:00:21]} Nc5 {[%emt 0:00:43]} 35. Rc3 {[%emt 0:01:37][%cal Oe4e5]} Rb1+ {[%emt 0:03:48]} 36. Kh2 {[%emt 0:01:23]} Re1 {[%emt 0:00:40]} 37. Bf3 {[%emt 0:02:28]} Kf8 {[%emt 0:01:21]} 38. Kg2 {[%emt 0:00:41]} Nxe4 {[%emt 0:01:00]} 39. Rxc7 {[%emt 0:00:40]} Nd2 {[%emt 0:00:56]} 40. Rc2 {[%emt 0:00:00]} Nxf3 {[%emt 0:00:00]} 41. Kxf3 {[%emt 0:24:11] KR-KR} Rd1 {[%emt 0:16:56]} 42. a4 {[%emt 0:15:08] And now a5 would win.} Rxd5 {[%emt 0:01:12]} 43. Ra2 {[%emt 0:00:24]} Ra5 $1 {[%emt 0:00:17]} 44. Ke4 {[%emt 0:00:13]} Ke7 {[%emt 0:00:32]} 45. Kd4 {[%emt 0:00:12]} Kd7 {[%emt 0:01:39]} 46. Kc4 {[%emt 0:00:22]} Kc6 {[%emt 0:02:44]} 47. Kb4 {[%emt 0:00:13]} Ra8 {[%emt 0:01:18]} (47... Rd5 $11) 48. Rc2+ {[%emt 0:01:02]} (48. a5 $16) 48... Kb6 {[%emt 0:01:01]} 49. Re2 {[%emt 0:01:05]} Kc6 {[%emt 0:01:27]} 50. Rc2+ {[%emt 0:01:46]} Kb6 {[%emt 0:00:05]} 51. Re2 {[%emt 0:00:07]} Kc6 {[%emt 0:00:04]} 52. a5 {[%emt 0:00:34]} Rb8+ $1 {[%emt 0:00:18]} 53. Ka4 {[%emt 0:00:11]} Rb1 {[%emt 0:00:31]} 54. Rc2+ {[%emt 0:00:18]} Kb7 {[%emt 0:00:19]} 55. Rc3 {[%emt 0:00:59] Black must now prevent Rb3+.} Ra1+ {[%emt 0:01:41]} (55... Rd1 $1 $11) 56. Ra3 {[%emt 0:00:27]} (56. Kb5 $14) 56... Rd1 $11 {[%emt 0:01:13] The position is equal.} 57. Rc3 {[%emt 0:04:17]} Rd4+ {[%emt 0:00:36]} 58. Kb5 {[%emt 0:00:26] Strongly threatening a6+.} Rd5+ {[%emt 0:00:11]} 59. Kb4 {[%emt 0:00:35]} Rd4+ {[%emt 0:00:18]} 60. Rc4 {[%emt 0:00:35]} Rd3 {[%emt 0:00:38]} 61. Rc3 {[%emt 0:05:04] Weighted Error Value: White=0.15 (very precise) /Black=0.12 (very precise)} 1/2-1/2